bitfinex/quotes_SOLUSD_20250621
["timestamp","ask_amount","ask_price","bid_price","bid_amount"]
[1750474486002,47.66964886,140.23,140.22,9.7978709]
[1750474486190,47.66964886,140.23,140.22,16.92952116]
[1750474487201,18.64964886,140.23,140.22,16.92952116]
[1750474487408,47.66964886,140.23,140.22,16.92952116]
[1750474487798,18.64964886,140.23,140.22,16.92952116]
[1750474488109,47.64964886,140.23,140.22,16.92952116]
[1750474490008,48.36964886,140.23,140.22,9.7978709]
[1750474490791,48.36964886,140.23,140.21,9.7978709]
[1750474490792,0.72,140.22,140.21,9.7978709]
[1750474491715,0.72,140.22,140.2,9.7978709]
[1750474491898,29.0,140.21,140.2,9.7978709]
[1750474492100,29.72,140.21,140.2,9.7978709]
[1750474494215,19.36964886,140.2,140.19,9.7978709]
[1750474494515,19.36964886,140.19,140.18,9.7978709]
[1750474494717,48.36964886,140.19,140.18,9.7978709]
[1750474500614,18.64964886,140.18,140.16,7.13449117]
[1750474500916,19.36964886,140.18,140.17,9.7978709]
[1750474501103,48.34964886,140.18,140.17,9.7978709]
[1750474502117,47.62964886,140.18,140.17,9.7978709]
[1750474506922,48.34964886,140.18,140.17,9.7978709]
[1750474509414,48.34964886,140.18,140.17,16.93206509]
[1750474510921,48.34964886,140.18,140.17,6.27306075]
[1750474511514,53.68088776,140.18,140.17,6.27306075]
[1750474511903,48.34964886,140.18,140.17,6.27306075]
[1750474513017,48.34964886,140.18,140.16,7.13447189]
[1750474513217,48.34964886,140.18,140.17,6.27306075]
[1750474513425,47.62964886,140.18,140.17,6.27306075]
[1750474514327,47.62964886,140.18,140.17,13.40725494]
[1750474529049,48.34964886,140.18,140.17,13.40725494]
[1750474530953,48.34964886,140.18,140.17,7.13419419]
[1750474531146,48.34964886,140.18,140.17,13.40725494]
[1750474531452,53.68564068,140.18,140.17,13.40725494]
[1750474532152,53.68552034,140.18,140.17,13.40725494]
[1750474532448,0.7,140.17,140.15,6.27306075]
[1750474532756,29.6,140.16,140.15,6.27306075]
[1750474533134,18.64964886,140.15,140.13,13.40929139]
[1750474533350,19.34964886,140.14,140.13,13.40929139]
[1750474533549,24.69582418,140.14,140.13,13.40929139]
[1750474534834,24.6958058,140.14,140.13,13.40929139]
[1750474535255,19.34964886,140.14,140.13,13.40929139]
[1750474536958,24.69387654,140.14,140.13,13.40929139]
[1750474537860,24.69384638,140.14,140.13,13.40929139]
[1750474538156,19.34964886,140.14,140.13,13.40929139]
[1750474539353,0.7,140.15,140.13,13.40929139]
[1750474539532,19.34964886,140.15,140.14,6.27306075]
[1750474539854,23.99070998,140.15,140.14,6.27306075]
[1750474540584,23.99070998,140.15,140.14,13.40878217]
[1750474540735,23.98941726,140.15,140.14,13.40878217]
[1750474541547,24.68941726,140.15,140.14,13.40878217]
[1750474542555,6.0397684,140.15,140.14,13.40878217]
[1750474542764,5.33964246,140.15,140.14,13.40878217]
[1750474543463,29.6,140.16,140.14,13.40878217]
[1750474544769,5.33902832,140.15,140.14,13.40878217]
[1750474544964,29.6,140.16,140.14,13.40878217]
[1750474545264,5.33910026,140.15,140.14,13.40878217]
[1750474547766,29.6,140.16,140.14,13.40878217]
[1750474547965,48.24964886,140.16,140.15,6.27306075]
[1750474548150,53.5877238,140.16,140.15,6.27306075]
[1750474548547,47.50964886,140.16,140.15,6.27306075]
[1750474549249,48.20964886,140.16,140.15,6.27306075]
[1750474553570,18.64964886,140.16,140.15,13.40827302]
[1750474561972,29.54,140.17,140.15,13.40827302]
[1750474562173,48.18964886,140.17,140.16,6.27306075]
[1750474562361,53.5290305,140.17,140.16,6.27306075]
[1750474562778,53.5290305,140.17,140.16,13.40776394]
[1750474566483,53.53052153,140.17,140.16,13.40776394]
[1750474567784,24.69052153,140.17,140.16,13.40776394]
[1750474568086,53.51052153,140.17,140.16,13.40776394]
[1750474571892,53.53173174,140.17,140.16,6.27306075]
[1750474573088,19.36964886,140.15,140.14,6.27306075]
[1750474573389,53.51173174,140.15,140.14,6.27306075]
[1750474575264,53.51363378,140.15,140.14,6.27306075]
[1750474577189,53.51363378,140.15,140.14,13.40878217]
[1750474578292,53.51407631,140.15,140.14,13.40878217]
[1750474581176,53.51398695,140.15,140.14,13.40878217]
[1750474583208,48.16964886,140.15,140.14,13.40878217]
[1750474583394,53.51404083,140.15,140.14,13.40878217]
[1750474584015,52.79404083,140.15,140.14,13.40878217]
[1750474585913,52.79404083,140.15,140.14,14.15878217]
[1750474586087,34.14439197,140.15,140.14,14.15878217]
[1750474586287,28.78,140.16,140.14,39.25102517]
[1750474586504,47.42964886,140.17,140.15,6.27306075]
[1750474586687,47.42964886,140.17,140.16,6.27306075]
[1750474586996,52.77356193,140.17,140.16,6.27306075]
[1750474587903,52.77356193,140.17,140.16,13.40776394]
[1750474588918,53.49356193,140.17,140.16,13.40776394]
[1750474589700,48.14964886,140.17,140.16,13.40776394]
[1750474590015,53.49307364,140.17,140.16,13.40776394]
[1750474597121,53.49296039,140.17,140.16,13.40776394]
[1750474598722,48.14964886,140.17,140.16,13.40776394]
[1750474598926,53.49270397,140.17,140.16,13.40776394]
[1750474601126,0.74,140.16,140.12,24.97841445]
[1750474601439,19.38964886,140.16,140.15,6.27306075]
[1750474601606,24.73295153,140.16,140.15,6.27306075]
[1750474602105,24.73295153,140.16,140.15,13.40827302]
[1750474604630,19.38964886,140.16,140.15,13.40827302]
[1750474604832,24.73296043,140.16,140.15,13.40827302]
[1750474610236,24.73296043,140.16,140.15,6.27306075]
[1750474610535,0.74,140.14,140.11,6.27306075]
[1750474610836,34.86517065,140.13,140.12,6.27306075]
[1750474612430,34.86517065,140.13,140.12,13.40980068]
[1750474614220,34.86517065,140.13,140.12,6.27306075]
[1750474614440,18.64964886,140.12,140.11,7.13701669]
[1750474614647,18.64964886,140.12,140.11,13.41007744]
[1750474614648,19.38964886,140.12,140.11,13.41007744]
[1750474615039,18.64964886,140.12,140.11,13.41007744]
[1750474618248,18.64964886,140.12,140.1,7.13775874]
[1750474618552,19.38964886,140.12,140.11,6.27306075]
[1750474618749,24.72704399,140.12,140.11,6.27306075]
[1750474618951,19.38964886,140.11,140.1,13.41081949]
[1750474619147,53.50704399,140.11,140.1,13.41081949]
[1750474619663,48.16964886,140.11,140.1,13.41081949]
[1750474619859,48.16964886,140.11,140.1,6.27306075]
[1750474620240,53.50750719,140.11,140.1,6.27306075]
[1750474622141,48.16964886,140.11,140.1,6.27306075]
[1750474622461,53.50291515,140.11,140.1,6.27306075]
[1750474622876,0.73,140.1,140.09,6.27306075]
[1750474625639,28.78,140.11,140.09,13.411329]
[1750474625971,47.42964886,140.11,140.1,6.27306075]
[1750474626153,48.15964886,140.11,140.1,6.27306075]
[1750474627163,18.64964886,140.11,140.1,6.27306075]
[1750474627369,47.44964886,140.11,140.1,13.41081949]
[1750474630366,28.8,140.12,140.1,14.11081949]
[1750474630747,18.64964886,140.12,140.11,6.27306075]
[1750474631264,18.64964886,140.12,140.11,13.41031005]
[1750474639980,18.64964886,140.12,140.11,14.11031005]
[1750474641382,28.78,140.13,140.11,14.11031005]
[1750474641581,47.42964886,140.13,140.12,6.27306075]
[1750474641885,0.73,140.14,140.12,6.97306075]
[1750474641886,28.78,140.14,140.12,6.97306075]
[1750474642072,47.42964886,140.14,140.13,6.27306075]
[1750474642585,18.64964886,140.14,140.13,6.27306075]
[1750474642971,18.64964886,140.14,140.13,13.40929139]
[1750474644285,23.98259363,140.14,140.13,13.40929139]
[1750474644485,18.64964886,140.14,140.13,13.40929139]
[1750474646765,0.73,140.16,140.13,13.40929139]
[1750474647005,6.04,140.17,140.15,6.27306075]
[1750474647307,47.42964886,140.17,140.16,6.27306075]
[1750474647592,23.98293703,140.17,140.16,6.27306075]
[1750474648090,18.64964886,140.17,140.16,6.27306075]
[1750474648468,19.37964886,140.17,140.16,6.27306075]
[1750474648671,0.73,140.16,140.15,6.27306075]
[1750474648875,0.73,140.16,140.15,13.40827302]
[1750474649087,29.51,140.16,140.15,13.40827302]
[1750474649389,34.84348528,140.16,140.15,13.40827302]
[1750474650970,29.51,140.16,140.15,13.40827302]
[1750474652075,0.69,140.15,140.1,24.98104538]
[1750474652374,0.69,140.13,140.1,24.98104538]
[1750474653581,19.33964886,140.13,140.12,13.40980068]
[1750474655177,18.64964886,140.13,140.12,13.40980068]
[1750474657408,28.78,140.14,140.12,13.40980068]
[1750474657698,47.42964886,140.14,140.13,6.27306075]
[1750474658409,47.42964886,140.14,140.13,13.40929139]
[1750474659297,18.64964886,140.14,140.13,13.40929139]
[1750474659690,19.33964886,140.14,140.13,13.40929139]
[1750474667693,19.33964886,140.12,140.11,6.27306075]
[1750474668222,24.67769448,140.12,140.11,6.27306075]
[1750474669202,24.67769448,140.12,140.11,13.41031005]
[1750474670906,24.6799994,140.12,140.11,13.41031005]
[1750474671805,24.67975828,140.12,140.11,13.41031005]
[1750474675290,24.68098442,140.12,140.11,13.41031005]
[1750474676414,24.68120657,140.12,140.11,13.41031005]
[1750474678517,24.68110606,140.12,140.11,13.41031005]
[1750474680316,24.68084767,140.12,140.11,13.41031005]
[1750474682996,24.68084767,140.12,140.08,17.84691904]
[1750474682997,18.64964886,140.09,140.08,6.27306075]
[1750474683230,23.99120136,140.09,140.08,6.27306075]
[1750474683517,24.70120136,140.09,140.08,6.27306075]
[1750474683724,24.70145259,140.09,140.08,6.27306075]
[1750474684096,24.70145259,140.09,140.08,13.41183859]
[1750474686619,24.69688458,140.09,140.08,13.41183859]
[1750474686803,19.35964886,140.09,140.08,13.41183859]
[1750474688310,18.64964886,140.09,140.08,13.41183859]
[1750474694236,28.78,140.1,140.08,14.13183859]
[1750474694534,47.42964886,140.1,140.09,6.27306075]
[1750474695331,18.64964886,140.1,140.09,6.27306075]
[1750474695706,18.64964886,140.1,140.09,13.411329]
[1750474696821,19.35964886,140.1,140.09,13.411329]
[1750474698526,18.64964886,140.1,140.09,13.411329]
[1750474700826,28.78,140.11,140.09,13.411329]
[1750474701025,47.42964886,140.11,140.1,6.27306075]
[1750474701523,48.13964886,140.11,140.1,6.27306075]
[1750474702823,48.13964886,140.11,140.1,13.41081949]
[1750474704043,48.13964886,140.11,140.1,7.13775874]
[1750474707342,53.4784938,140.11,140.1,7.13775874]
[1750474707840,48.13964886,140.11,140.1,7.13775874]
[1750474708043,53.48048509,140.11,140.1,7.13775874]
[1750474709545,53.48101069,140.11,140.1,7.13775874]
[1750474712046,53.48350526,140.11,140.1,7.13775874]
[1750474713042,53.48350526,140.11,140.1,6.27306075]
[1750474713436,53.48365773,140.11,140.1,6.27306075]
[1750474713949,53.48365773,140.11,140.1,13.41081949]
[1750474715449,48.13964886,140.11,140.1,13.41081949]
[1750474715760,53.48386427,140.11,140.1,13.41081949]
[1750474716339,53.48383499,140.11,140.1,13.41081949]
[1750474719336,53.48426465,140.11,140.1,13.41081949]
[1750474721354,53.48478131,140.11,140.1,13.41081949]
[1750474722355,53.48507793,140.11,140.1,13.41081949]
[1750474725333,53.48556122,140.11,140.1,13.41081949]
[1750474727658,53.48556122,140.11,140.1,7.13775874]
[1750474731266,53.4864834,140.11,140.1,7.13775874]
[1750474734172,53.48684987,140.11,140.1,7.13775874]
[1750474737072,48.13964886,140.11,140.1,7.13775874]
[1750474737263,53.48774437,140.11,140.1,7.13775874]
[1750474738777,53.48902559,140.11,140.1,7.13775874]
[1750474739976,48.13964886,140.11,140.1,7.13775874]
[1750474740182,52.77977308,140.11,140.1,7.13775874]
[1750474741379,52.77977308,140.11,140.1,6.27306075]
[1750474742479,52.77977308,140.11,140.1,13.41081949]
[1750474742656,52.78049851,140.11,140.1,13.41081949]
[1750474743570,34.13084965,140.11,140.1,13.41081949]
[1750474744368,5.35084965,140.11,140.1,13.41081949]
[1750474745680,5.35438872,140.11,140.1,13.41081949]
[1750474745883,5.35437316,140.11,140.1,13.41081949]
[1750474747787,5.35426399,140.11,140.1,13.41081949]
[1750474749283,6.07426399,140.11,140.1,13.41081949]
[1750474750471,24.72391285,140.11,140.1,7.13775874]
[1750474750676,24.00391285,140.11,140.09,13.41121738]
[1750474750879,6.07426399,140.1,140.09,13.41121738]
[1750474751272,13.38593502,140.1,140.08,6.27306075]
[1750474751478,28.76,140.1,140.09,6.27306075]
[1750474751770,42.86629619,140.1,140.09,6.27306075]
[1750474753686,42.14629619,140.1,140.09,6.27306075]
[1750474753891,42.14629619,140.1,140.09,13.411329]
[1750474754487,60.79135689,140.1,140.09,13.411329]
[1750474754674,24.00126888,140.1,140.09,13.411329]
[1750474756690,5.35162002,140.1,140.09,14.151329]
[1750474756893,5.34994431,140.1,140.09,13.411329]
[1750474757086,5.34994431,140.1,140.09,14.151329]
[1750474757589,19.36964886,140.13,140.09,14.151329]
[1750474757789,52.75910451,140.12,140.11,6.27306075]
[1750474758792,53.47910451,140.12,140.11,13.41031005]
[1750474759476,52.75910451,140.12,140.11,13.41031005]
[1750474759878,5.34945565,140.12,140.11,13.41031005]
[1750474760278,5.34854965,140.12,140.11,13.41031005]
[1750474764501,48.12964886,140.13,140.11,13.41031005]
[1750474764697,48.12964886,140.13,140.12,6.27306075]
[1750474764888,53.47576496,140.13,140.12,6.27306075]
[1750474765900,24.71576496,140.13,140.12,13.40980068]
[1750474766199,53.47576496,140.13,140.12,13.40980068]
[1750474767004,24.71576496,140.13,140.12,13.40980068]
[1750474767199,53.47576496,140.13,140.12,13.40980068]
[1750474768100,5.3461161,140.13,140.12,13.40980068]
[1750474768282,6.0661161,140.13,140.12,13.40980068]
[1750474769003,0.72,140.13,140.12,13.40980068]
[1750474769202,6.06338023,140.13,140.12,13.40980068]
[1750474769403,5.34338023,140.13,140.12,13.40980068]
[1750474771580,5.34338023,140.13,140.11,7.1372493]
[1750474771780,0.72,140.13,140.12,6.27306075]
[1750474771996,6.06235471,140.13,140.12,6.27306075]
[1750474772207,6.06234928,140.13,140.12,6.27306075]
[1750474773479,6.06234928,140.13,140.12,13.40980068]
[1750474775008,6.0616168,140.13,140.12,13.40980068]
[1750474777203,6.0516168,140.13,140.12,13.40980068]
[1750474777408,18.64964886,140.11,140.09,6.27306075]
[1750474777601,0.71,140.1,140.09,6.27306075]
[1750474779012,28.76,140.11,140.09,6.96306075]
[1750474779187,28.76,140.11,140.09,0.69]
[1750474779513,28.76,140.11,140.1,6.27306075]
[1750474780634,28.76,140.11,140.1,13.41081949]
[1750474788341,29.47,140.11,140.1,13.41081949]
[1750474789317,0.71,140.09,140.07,6.27306075]
[1750474789620,0.71,140.08,140.07,6.27306075]
[1750474789922,0.71,140.08,140.07,13.41234824]
[1750474801102,19.35964886,140.08,140.07,6.27306075]
[1750474801303,0.71,140.07,140.06,13.41264731]
[1750474801607,19.35964886,140.08,140.06,13.41264731]
[1750474801925,29.46,140.09,140.07,6.27306075]
[1750474802126,48.10964886,140.09,140.08,6.27306075]
[1750474802326,53.44636263,140.09,140.08,6.27306075]
[1750474802512,53.44636263,140.09,140.08,13.41183859]
[1750474803228,48.10964886,140.09,140.08,13.41183859]
[1750474807027,47.40964886,140.09,140.08,13.41183859]
[1750474807530,48.10964886,140.09,140.08,13.41183859]
[1750474808134,18.64964886,140.1,140.08,14.10183859]
[1750474808301,47.40964886,140.1,140.09,6.27306075]
[1750474808501,18.64964886,140.1,140.09,6.27306075]
[1750474809523,18.64964886,140.1,140.09,13.411329]
[1750474810311,19.34964886,140.1,140.09,13.411329]
[1750474810512,24.68459205,140.1,140.09,7.13826825]
[1750474812530,24.68459205,140.1,140.06,7.13979722]
[1750474812714,28.76,140.09,140.07,6.27306075]
[1750474812919,0.7,140.08,140.07,6.27306075]
[1750474814508,0.7,140.07,140.06,13.41285797]
[1750474816034,18.64964886,140.08,140.06,13.41285797]
[1750474816240,18.64964886,140.08,140.07,6.27306075]
[1750474816935,18.64964886,140.08,140.07,13.41234824]
[1750474817139,19.34964886,140.08,140.07,13.41234824]
[1750474817745,18.64964886,140.08,140.07,13.41234824]
[1750474819052,19.34964886,140.08,140.07,13.41234824]
[1750474820441,24.69168637,140.08,140.07,13.41234824]
[1750474821738,24.69172446,140.08,140.07,13.41234824]
[1750474823146,28.76,140.09,140.07,13.41234824]
[1750474823440,29.46,140.09,140.08,6.27306075]
[1750474824221,18.64964886,140.08,140.07,13.41234824]
[1750474824418,19.34964886,140.08,140.07,13.41234824]
[1750474825120,24.69173058,140.08,140.07,13.41234824]
[1750474825321,0.7,140.07,140.06,6.27306075]
[1750474826424,0.7,140.07,140.06,13.41285797]
[1750474827129,18.64964886,140.08,140.06,13.41285797]
[1750474827336,19.34964886,140.08,140.07,6.27306075]
[1750474827847,24.69332052,140.08,140.07,6.27306075]
[1750474828045,24.69333905,140.08,140.07,6.27306075]
[1750474828550,24.69333905,140.08,140.07,13.41234824]
[1750474830326,19.34964886,140.08,140.07,13.41234824]
[1750474830520,24.69607187,140.08,140.07,13.41234824]
[1750474832448,24.70165907,140.08,140.07,13.41234824]
[1750474836353,24.70174863,140.08,140.07,13.41234824]
[1750474836553,24.7017704,140.08,140.07,13.41234824]
[1750474839349,24.70191107,140.08,140.07,13.41234824]
[1750474841147,5.35226221,140.08,140.07,14.11234824]
[1750474841350,29.5,140.11,140.07,31.96056698]
[1750474841549,29.5,140.11,140.09,6.27306075]
[1750474841550,24.00135187,140.1,140.09,6.27306075]
[1750474842251,24.00073296,140.1,140.09,6.27306075]
[1750474842638,5.3510841,140.1,140.09,6.27306075]
[1750474844656,5.3510841,140.1,140.09,13.411329]
[1750474845355,29.5,140.11,140.09,13.411329]
[1750474845560,48.14964886,140.11,140.1,6.27306075]
[1750474845759,53.49774332,140.11,140.1,6.27306075]
[1750474847662,53.49774332,140.11,140.1,13.41081949]
[1750474848051,53.49512058,140.11,140.1,13.41081949]
[1750474849744,52.75512058,140.11,140.1,13.41081949]
[1750474850157,53.49512058,140.11,140.1,13.41081949]
[1750474852655,19.38964886,140.11,140.1,13.41081949]
[1750474856565,19.38964886,140.11,140.1,7.13775874]
[1750474856771,18.64964886,140.11,140.1,13.41081949]
[1750474859054,19.38964886,140.11,140.1,13.41081949]
[1750474861047,18.64964886,140.11,140.1,13.41081949]
[1750474862145,26.0,140.14,140.11,0.68]
[1750474862146,47.38964886,140.13,140.11,0.68]
[1750474862348,18.64964886,140.13,140.12,6.27306075]
[1750474862687,29.42,140.14,140.12,6.27306075]
[1750474862688,28.74,140.14,140.12,6.27306075]
[1750474862968,28.74,140.15,140.13,6.27306075]
[1750474863170,48.06964886,140.15,140.14,6.27306075]
[1750474863402,53.40471243,140.15,140.14,6.27306075]
[1750474864379,53.40471243,140.15,140.14,13.40878217]
[1750474864671,24.66471243,140.15,140.14,13.40878217]
[1750474865079,53.40471243,140.15,140.14,13.40878217]
[1750474865262,48.06964886,140.15,140.14,13.40878217]
[1750474865454,53.4021614,140.15,140.14,13.40878217]
[1750474866956,24.66048954,140.15,140.14,13.40878217]
[1750474867253,48.06964886,140.15,140.14,13.40878217]
[1750474868889,48.06964886,140.15,140.14,7.13572142]
[1750474869183,53.40045946,140.15,140.14,7.13572142]
[1750474869876,53.40045946,140.15,140.13,7.13623064]
[1750474869877,18.64964886,140.14,140.13,7.13623064]
[1750474870058,19.32964886,140.14,140.13,7.13623064]
[1750474871253,18.64964886,140.14,140.12,17.84142342]
[1750474871460,0.68,140.13,140.11,13.41031005]
[1750474871656,19.32964886,140.12,140.11,13.41031005]
[1750474871854,28.74,140.13,140.11,13.41031005]
[1750474872103,48.06964886,140.13,140.12,6.27306075]
[1750474872261,47.38964886,140.13,140.12,6.27306075]
[1750474872571,28.74,140.13,140.12,6.27306075]
[1750474873276,47.38964886,140.14,140.13,7.13623064]
[1750474873478,47.38964886,140.14,140.13,13.40929139]
[1750474880088,18.64964886,140.14,140.13,13.40929139]
[1750474880285,47.38964886,140.14,140.13,13.40929139]
[1750474884298,48.06964886,140.14,140.13,13.40929139]
[1750474888601,53.40998684,140.14,140.13,13.40929139]
[1750474888804,53.41016766,140.14,140.13,13.40929139]
[1750474889483,19.32964886,140.14,140.13,13.40929139]
[1750474889705,48.06964886,140.14,140.13,13.40929139]
[1750474891086,53.41086188,140.14,140.13,13.40929139]
[1750474891686,48.06964886,140.14,140.13,13.40929139]
[1750474891891,53.41104276,140.14,140.13,13.40929139]
[1750474892596,18.64964886,140.12,140.09,17.84548069]
[1750474892802,18.64964886,140.12,140.1,6.27306075]
[1750474892803,0.74,140.11,140.1,6.27306075]
[1750474893006,0.74,140.11,140.1,13.41081949]
[1750474895013,48.12964886,140.12,140.1,13.41081949]
[1750474895189,48.12964886,140.12,140.11,6.27306075]
[1750474895392,47.38964886,140.12,140.11,6.27306075]
[1750474898012,48.12964886,140.12,140.11,13.41031005]
[1750474901120,47.38964886,140.12,140.11,13.41031005]
[1750474902097,18.64964886,140.12,140.11,13.41031005]
[1750474902497,23.99547504,140.12,140.11,13.41031005]
[1750474903418,23.99547504,140.12,140.11,7.1372493]
[1750474903712,23.99547504,140.12,140.11,13.41031005]
[1750474905099,24.73547504,140.12,140.11,13.41031005]
[1750474909229,24.73547504,140.12,140.09,24.98374894]
[1750474909522,19.38964886,140.12,140.11,6.27306075]
[1750474909707,24.73678457,140.12,140.11,6.27306075]
[1750474910926,24.73678457,140.12,140.11,13.41031005]
[1750474911598,23.99678457,140.12,140.11,14.13031005]
[1750474911825,18.64964886,140.12,140.11,14.13031005]
[1750474912525,28.74,140.13,140.11,14.13031005]
[1750474912723,18.64964886,140.13,140.12,6.27306075]
[1750474912923,23.99657059,140.13,140.12,6.27306075]
[1750474913427,23.99657059,140.13,140.12,13.40980068]
[1750474914519,28.74,140.14,140.12,13.40980068]
[1750474914703,47.38964886,140.14,140.13,6.27306075]
[1750474914905,52.73638845,140.14,140.13,6.27306075]
[1750474915432,18.64964886,140.14,140.13,13.40929139]
[1750474915730,18.64964886,140.15,140.13,31.96986799]
[1750474915909,18.64964886,140.15,140.14,6.27306075]
[1750474916109,23.99611164,140.15,140.14,6.27306075]
[1750474917630,23.99611164,140.15,140.14,13.40878217]
[1750474919837,18.64964886,140.16,140.14,14.12878217]
[1750474920047,18.64964886,140.16,140.15,6.27306075]
[1750474920348,23.99403989,140.16,140.15,6.27306075]
[1750474922018,23.99403989,140.16,140.15,13.40827302]
[1750474924946,5.34439103,140.16,140.15,13.40827302]
[1750474927045,5.33976746,140.16,140.15,13.40827302]
[1750474927548,0.75,140.16,140.15,13.40827302]
[1750474928645,6.08925298,140.16,140.15,13.40827302]
[1750474928849,6.08925298,140.16,140.14,7.13572142]
[1750474929147,48.13964886,140.18,140.15,6.27306075]
[1750474929357,48.17964886,140.18,140.17,6.27306075]
[1750474929530,53.51839268,140.18,140.17,6.27306075]
[1750474929928,24.73838153,140.18,140.17,6.27306075]
[1750474930146,53.53838153,140.18,140.17,6.27306075]
[1750474931063,53.53838153,140.18,140.17,7.13419419]
[1750474932835,18.64964886,140.17,140.16,7.13470319]
[1750474933036,24.73560334,140.17,140.16,7.13470319]
[1750474934845,24.7341498,140.17,140.16,7.13470319]
[1750474936159,24.7341498,140.17,140.16,13.40776394]
[1750474937557,19.39964886,140.17,140.16,13.40776394]
[1750474938483,24.73302646,140.17,140.16,13.40776394]
[1750474938860,24.73305655,140.17,140.16,13.40776394]
[1750474939035,19.39964886,140.17,140.16,13.40776394]
[1750474939356,0.75,140.17,140.16,13.40776394]
[1750474939660,29.55,140.18,140.16,13.40776394]
[1750474939833,48.19964886,140.18,140.17,6.27306075]
[1750474940033,24.73347506,140.18,140.17,6.27306075]
[1750474940252,53.51347506,140.18,140.17,6.27306075]
[1750474941136,53.51347364,140.18,140.17,6.27306075]
[1750474941865,53.51347364,140.18,140.17,13.40725494]
[1750474942038,48.17964886,140.18,140.17,13.40725494]
[1750474942939,53.51252362,140.18,140.17,13.40725494]
[1750474943434,53.51255371,140.18,140.17,13.40725494]
[1750474943867,48.17964886,140.18,140.17,13.40725494]
[1750474946745,47.42964886,140.18,140.17,13.40725494]
[1750474948761,52.76399276,140.18,140.17,13.40725494]
[1750474949064,52.74399276,140.18,140.17,13.40725494]
[1750474951069,0.75,140.21,140.17,31.24274042]
[1750474951248,34.09372818,140.2,140.18,0.69]
[1750474951445,28.76,140.2,140.19,6.27306075]
[1750474951649,19.39964886,140.22,140.19,6.96306075]
[1750474951849,34.09339663,140.21,140.19,0.69]
[1750474952049,28.76,140.21,140.19,0.69]
[1750474953171,47.40964886,140.21,140.2,13.40572836]
[1750474953683,48.08964886,140.21,140.2,7.13266761]
[1750474954178,53.41942039,140.21,140.2,7.13266761]
[1750474954346,48.08964886,140.21,140.2,13.40572836]
[1750474954661,53.41942039,140.21,140.2,13.40572836]
[1750474955369,48.08964886,140.21,140.2,13.40572836]
[1750474955942,53.42054049,140.21,140.2,13.40572836]
[1750474956571,48.08964886,140.21,140.2,13.40572836]
[1750474957975,47.40964886,140.21,140.2,13.40572836]
[1750474958173,47.40964886,140.21,140.2,14.09572836]
[1750474958361,18.64964886,140.21,140.2,14.09572836]
[1750474958551,47.44964886,140.21,140.2,14.09572836]
[1750474958966,13.09139984,140.23,140.2,31.9273974]
[1750474959166,18.64964886,140.22,140.2,25.65433665]
[1750474959469,47.42964886,140.22,140.21,6.27306075]
[1750474961580,48.10964886,140.22,140.21,6.27306075]
[1750474962467,48.10964886,140.22,140.21,13.40521965]
[1750474964365,47.42964886,140.22,140.21,13.40521965]
[1750474965384,48.10964886,140.22,140.21,13.40521965]
[1750474966588,19.32964886,140.22,140.21,13.40521965]
[1750474966773,48.10964886,140.22,140.21,13.40521965]
[1750474967082,28.78,140.22,140.21,13.40521965]
[1750474968178,12.41139984,140.23,140.21,13.40521965]
[1750474968369,59.8810487,140.23,140.22,6.27306075]
[1750474968580,31.0610487,140.23,140.22,6.27306075]
[1750474968887,59.8810487,140.23,140.22,6.27306075]
[1750474969466,47.46964886,140.23,140.22,6.27306075]
[1750474970392,47.46964886,140.23,140.22,13.40471101]
[1750474971083,18.64964886,140.23,140.22,13.40471101]
[1750474971287,47.44964886,140.23,140.22,13.40471101]
[1750474977191,48.12964886,140.23,140.22,13.40471101]
[1750474977389,42.89,140.27,140.22,31.23383666]
[1750474977684,52.77367986,140.26,140.23,6.27306075]
[1750474977863,0.68,140.25,140.23,6.27306075]
[1750474978068,29.48,140.24,140.23,6.27306075]
[1750474978890,29.48,140.24,140.23,13.40420244]
[1750474979097,28.8,140.24,140.23,13.40420244]
[1750474979276,47.44964886,140.24,140.23,13.40420244]
[1750474979792,48.12964886,140.24,140.23,13.40420244]
[1750474980096,48.12964886,140.24,140.22,24.96077591]
[1750474980296,48.10964886,140.24,140.23,6.27306075]
[1750474980494,0.68,140.27,140.23,6.27306075]
[1750474980672,53.43509777,140.26,140.23,0.69]
[1750474980869,48.10964886,140.26,140.25,6.27306075]
[1750474981270,48.14964886,140.26,140.25,6.27306075]
[1750474983376,53.47522843,140.26,140.25,13.40318552]
[1750474983567,48.14964886,140.26,140.25,13.40318552]
[1750474984296,29.53,140.26,140.25,13.40318552]
[1750474984602,28.82,140.26,140.25,13.40318552]
[1750474984895,47.46964886,140.26,140.25,13.40318552]
[1750474986610,47.46964886,140.26,140.25,6.27306075]
[1750474988303,48.17964886,140.26,140.24,24.95682831]
[1750474988488,48.17964886,140.26,140.25,6.27306075]
[1750474988801,48.17964886,140.26,140.25,13.40318552]
[1750474989180,47.46964886,140.26,140.25,13.40318552]
[1750474989402,18.64964886,140.26,140.25,13.40318552]
[1750474990708,19.31686354,140.26,140.24,24.95682831]